fUST/lending_fUST_20250802
["ID","MTS","AMOUNT","RATE_DAILY","PERIOD"]
[376737699,1754093447922,-1761.1,0.00019786,2]
[376737700,1754093447931,-460.0,0.00019786,2]
[376737701,1754093447941,-460.0,0.00019786,2]
[376737702,1754093447950,-1201.48,0.00019786,2]
[376737703,1754093447959,-471.74738896,0.00019786,2]
[376737704,1754093447969,-460.0,0.00019786,2]
[376737705,1754093447978,-460.0,0.00019786,2]
[376737706,1754093447987,-460.0,0.00019786,2]
[376737707,1754093447996,-460.0,0.00019788,2]
[376737708,1754093448005,-460.0,0.00019788,2]
[376737709,1754093448015,-1171.35355267,0.000199,2]
[376737710,1754093448025,-2970.51768558,0.0002,2]
[376737711,1754093448035,-715.32,0.00020056,2]
[376737712,1754093448045,-460.0,0.00020056,2]
[376737713,1754093448055,-578.52,0.00020056,2]
[376737714,1754093448071,-460.0,0.00020056,2]
[376737715,1754093448080,-460.0,0.00020056,2]
[376737716,1754093448089,-460.0,0.00020056,2]
[376737717,1754093448099,-460.0,0.00020056,2]
[376737718,1754093448109,-460.0,0.00020056,2]
[376737719,1754093448120,-565.03,0.00020056,2]
[376737720,1754093448130,-460.0,0.00020056,2]
[376737721,1754093448141,-460.0,0.00020056,2]
[376737722,1754093448153,-460.0,0.00020056,2]
[376737723,1754093448163,-460.0,0.00020056,2]
[376737724,1754093448173,-460.0,0.00020056,2]
[376737725,1754093448183,-460.0,0.00020057,2]
[376737726,1754093448193,-460.0,0.00020057,2]
[376737727,1754093448202,-460.0,0.00020057,2]
[376737728,1754093448212,-460.0,0.00020057,2]
[376737729,1754093448222,-460.0,0.00020057,2]
[376737730,1754093448231,-460.0,0.00020057,2]
[376737731,1754093448240,-460.0,0.00020057,2]
[376737732,1754093448250,-1028.88,0.00020057,2]
[376737733,1754093448259,-460.0,0.00020057,2]
[376737734,1754093448269,-460.0,0.00020057,2]
[376737735,1754093448278,-163.36379744,0.00020057,2]
[376737736,1754093448289,-460.0,0.00020057,2]
[376737737,1754093448298,-460.0,0.00020057,2]
[376737738,1754093448308,-460.0,0.00020057,2]
[376737739,1754093448317,-460.0,0.00020057,2]
[376737740,1754093448327,-460.0,0.00020057,2]
[376737741,1754093448337,-460.0,0.00020057,2]
[376737742,1754093448346,-460.0,0.00020057,2]
[376737743,1754093448356,-460.0,0.00020057,2]
[376737744,1754093448365,-460.0,0.00020057,2]
[376737745,1754093448374,-460.0,0.00020057,2]
[376737746,1754093448384,-460.0,0.00020057,2]
[376737747,1754093448392,-460.0,0.00020057,2]
[376737748,1754093448401,-460.0,0.00020057,2]
[376737749,1754093448411,-460.0,0.00020057,2]
[376737750,1754093448420,-460.0,0.00020057,2]
[376737751,1754093448429,-460.0,0.00020057,2]
[376737752,1754093448439,-460.0,0.00020057,2]
[376737753,1754093448448,-460.0,0.00020057,2]
[376737754,1754093448457,-460.0,0.00020057,2]
[376737755,1754093448467,-460.0,0.00020057,2]
[376737756,1754093448476,-460.0,0.00020057,2]
[376737757,1754093448485,-460.0,0.00020057,2]
[376737758,1754093448495,-589.28,0.00020057,2]
[376737759,1754093448504,-807.54,0.00020057,2]
[376737760,1754093448513,-460.0,0.00020057,2]
[376737761,1754093448523,-460.0,0.00020057,2]
[376737762,1754093448532,-460.0,0.00020057,2]
[376737763,1754093448543,-460.0,0.00020057,2]
[376737764,1754093448553,-460.0,0.00020057,2]
[376737765,1754093448563,-460.0,0.00020058,2]
[376737766,1754093448573,-799.76,0.00020058,2]
[376737767,1754093448583,-460.0,0.00020058,2]
[376737768,1754093448592,-460.0,0.00020058,2]
[376737770,1754093448602,-460.0,0.00020058,2]
[376737771,1754093448611,-460.0,0.00020058,2]
[376737772,1754093448620,-460.0,0.00020058,2]
[376737773,1754093448630,-460.0,0.00020058,2]
[376737774,1754093448640,-460.0,0.00020058,2]
[376737775,1754093448649,-460.0,0.00020058,2]
[376737776,1754093448658,-460.0,0.00020058,2]
[376737777,1754093448667,-460.0,0.00020058,2]
[376737778,1754093448677,-460.0,0.00020058,2]
[376737779,1754093448687,-532.19,0.00020058,2]
[376737780,1754093448696,-460.0,0.00020058,2]
[376737781,1754093448705,-460.0,0.00020058,2]
[376737782,1754093448717,-460.0,0.00020058,2]
[376737783,1754093448726,-460.0,0.00020058,2]
[376737784,1754093448736,-460.0,0.00020058,2]
[376737785,1754093448745,-460.0,0.00020058,2]
[376737786,1754093448754,-460.0,0.00020058,2]
[376737787,1754093448764,-460.0,0.00020058,2]
[376737788,1754093448773,-2177.61,0.00020058,2]
[376737789,1754093448783,-460.0,0.00020058,2]
[376737790,1754093448793,-460.0,0.00020058,2]
[376737791,1754093448803,-460.0,0.00020058,2]
[376737792,1754093448813,-460.0,0.00020059,2]
[376737793,1754093448823,-460.0,0.00020059,2]
[376737794,1754093448832,-585.0042585,0.00020059,2]
[376737795,1754093448842,-460.0,0.00020059,2]
[376737796,1754093448852,-460.0,0.00020059,2]
[376737797,1754093448862,-460.0,0.00020059,2]
[376737798,1754093448871,-460.0,0.00020059,2]
[376737799,1754093448880,-511.48,0.00020059,2]
[376737800,1754093448890,-460.0,0.00020059,2]
[376737801,1754093448899,-460.0,0.00020059,2]
[376737802,1754093448908,-460.0,0.00020059,2]
[376737803,1754093448917,-460.0,0.00020059,2]
[376737804,1754093448927,-460.0,0.00020059,2]
[376737805,1754093448936,-460.0,0.00020059,2]
[376737806,1754093448946,-460.0,0.00020059,2]
[376737807,1754093448956,-460.0,0.00020059,2]
[376737808,1754093448965,-460.0,0.0002006,2]
[376737809,1754093448975,-1761.1,0.0002006,2]
[376737810,1754093448985,-460.0,0.0002006,2]
[376737811,1754093448995,-460.0,0.0002006,2]
[376737812,1754093449004,-1201.48,0.0002006,2]
[376737813,1754093449014,-460.0,0.0002006,2]
[376737814,1754093449023,-460.0,0.0002006,2]
[376737815,1754093449033,-460.0,0.0002006,2]
[376737816,1754093449044,-151.0,0.00020062,2]
[376737817,1754093449053,-151.0,0.00020062,2]
[376737818,1754093449064,-460.0,0.00020062,2]
[376737819,1754093449076,-151.0,0.00020063,2]
[376737820,1754093449086,-500.0,0.00020073,2]
[376737821,1754093449095,-500.0,0.00020073,2]
[376737822,1754093449104,-500.0,0.00020073,2]
[376737823,1754093449114,-500.0,0.00020073,2]
[376737824,1754093449123,-500.0,0.00020073,2]
[376737825,1754093449133,-500.0,0.00020073,2]
[376737826,1754093449145,-500.0,0.00020073,2]
[376737827,1754093449156,-500.0,0.00020073,2]
[376737828,1754093449166,-500.0,0.00020073,2]
[376737829,1754093449175,-500.0,0.00020073,2]
[376737830,1754093449184,-500.0,0.00020073,2]
[376737831,1754093449194,-500.0,0.00020073,2]
[376737832,1754093449203,-500.0,0.00020073,2]
[376737833,1754093449212,-500.0,0.00020073,2]
[376737834,1754093449222,-632.89791953,0.00020121,2]
[376737835,1754093449231,-1000.0,0.00020121,2]
[376737836,1754093449241,-1609.90034345,0.0002014,2]
[376737837,1754093449250,-1171.35355252,0.00020176,2]
[376737838,1754093449260,-440.57843255,0.00020293,2]
[376737839,1754093449269,-1000.0,0.00020321,2]
[376737840,1754093449279,-715.32,0.0002033,2]
[376737841,1754093449290,-460.0,0.0002033,2]
[376737842,1754093449299,-578.52,0.0002033,2]
[376737843,1754093449308,-460.0,0.0002033,2]
[376737844,1754093449318,-460.0,0.0002033,2]
[376737845,1754093449328,-460.0,0.0002033,2]
[376737846,1754093449337,-460.0,0.0002033,2]
[376737847,1754093449347,-460.0,0.0002033,2]
[376737848,1754093449356,-460.0,0.0002033,2]
[376737849,1754093449365,-460.0,0.0002033,2]
[376737850,1754093449375,-460.0,0.0002033,2]
[376737851,1754093449384,-500.0,0.0002033,2]
[376737852,1754093449393,-500.0,0.0002033,2]
[376737853,1754093449402,-285.75319563,0.0002033,2]
[376737854,1754093449412,-500.0,0.0002033,2]
[376737855,1754093449422,-500.0,0.0002033,2]
[376737856,1754093449431,-500.0,0.0002033,2]
[376737857,1754093449440,-469.21815951,0.0002033,2]
[376737858,1754093449450,-500.0,0.0002033,2]
[376737859,1754093449459,-460.0,0.00020331,2]
[376737860,1754093449468,-312.03498412,0.00020331,2]
[376737861,1754093449478,-460.0,0.00020331,2]
[376737862,1754093449487,-462.16,0.00020331,2]
[376737863,1754093449496,-1028.88,0.00020331,2]
[376737864,1754093449506,-460.0,0.00020331,2]
[376737865,1754093449515,-460.0,0.00020331,2]
[376737866,1754093449524,-460.0,0.00020331,2]
[376737867,1754093449534,-460.0,0.00020331,2]
[376737868,1754093449544,-460.0,0.00020331,2]
[376737869,1754093449554,-460.0,0.00020331,2]
[376737870,1754093449563,-460.0,0.00020331,2]
[376737871,1754093449572,-460.0,0.00020331,2]
[376737872,1754093449582,-460.0,0.00020331,2]
[376737873,1754093449592,-544.84,0.00020331,2]
[376737874,1754093449601,-460.0,0.00020331,2]
[376737875,1754093449611,-460.0,0.00020331,2]
[376737876,1754093449627,-460.0,0.00020331,2]
[376737877,1754093449648,-460.0,0.00020331,2]
[376737878,1754093449663,-460.0,0.00020331,2]
[376737879,1754093449673,-460.0,0.00020331,2]
[376737880,1754093449682,-460.0,0.00020331,2]
[376737881,1754093449692,-460.0,0.00020331,2]
[376737882,1754093449701,-460.0,0.00020331,2]
[376737883,1754093449711,-460.0,0.00020331,2]
[376737884,1754093449720,-604.6,0.00020331,2]
[376737885,1754093449729,-460.0,0.00020331,2]
[376737886,1754093449739,-460.0,0.00020331,2]
[376737887,1754093449750,-589.28,0.00020331,2]
[376737888,1754093449762,-807.54,0.00020331,2]
[376737889,1754093449771,-460.0,0.00020331,2]
[376737890,1754093449780,-460.0,0.00020331,2]
[376737891,1754093449790,-460.0,0.00020331,2]
[376737892,1754093449799,-460.0,0.00020331,2]
[376737893,1754093449808,-460.0,0.00020331,2]
[376737894,1754093449817,-799.76,0.00020332,2]
[376737895,1754093449826,-460.0,0.00020332,2]
[376737896,1754093449836,-508.57314319,0.00020332,2]
[376737897,1754093449845,-460.0,0.00020332,2]
[376737898,1754093449854,-460.0,0.00020332,2]
[376737899,1754093449863,-460.0,0.00020332,2]
[376737900,1754093449873,-460.0,0.00020332,2]
[376737901,1754093449881,-460.0,0.00020332,2]
[376737902,1754093449890,-460.0,0.00020332,2]
[376737903,1754093449899,-493.96,0.00020332,2]
[376737904,1754093449908,-460.0,0.00020332,2]
[376737905,1754093449918,-460.0,0.00020332,2]
[376737906,1754093449927,-532.19,0.00020332,2]
[376737907,1754093449936,-460.0,0.00020332,2]
[376737908,1754093449945,-460.0,0.00020332,2]
[376737909,1754093449955,-413.2,0.00020332,2]
[376737910,1754093449964,-534.9,0.00020332,2]
[376737911,1754093449973,-460.0,0.00020332,2]
[376737912,1754093449982,-460.0,0.00020332,2]
[376737913,1754093449991,-460.0,0.00020332,2]
[376737914,1754093450001,-292.53,0.00020332,2]
[376737915,1754093450010,-2177.61,0.00020332,2]
[376737916,1754093450019,-460.0,0.00020332,2]
[376737917,1754093450029,-460.0,0.00020332,2]
[376737918,1754093450039,-460.0,0.00020333,2]
[376737919,1754093450048,-392.61491274,0.00020333,2]
[376737920,1754093450058,-152.13591053,0.00020333,2]
[376737921,1754093450071,-460.0,0.00020333,2]
[376737922,1754093450081,-488.95,0.00020333,2]
[376737923,1754093450090,-460.0,0.00020333,2]
[376737924,1754093450099,-460.0,0.00020333,2]
[376737925,1754093450110,-208.2,0.00020333,2]
[376737926,1754093450119,-1761.1,0.00020334,2]
[376737927,1754093450129,-460.0,0.00020334,2]
[376737928,1754093450138,-460.0,0.00020334,2]
[376737929,1754093450148,-1201.48,0.00020334,2]
[376737930,1754093450159,-460.0,0.00020334,2]
[376737931,1754093450168,-460.0,0.00020334,2]
[376737932,1754093450177,-460.0,0.00020334,2]
[376737933,1754093450187,-460.0,0.00020336,2]
[376737934,1754093450196,-151.0,0.00020338,2]
[376737935,1754093450206,-151.0,0.00020338,2]
[376737936,1754093450215,-500.0,0.00020373,2]
[376737937,1754093450224,-275.06325816,0.00020373,2]
[376737938,1754093450234,-150.0,0.00020373,2]
[376737939,1754093450243,-501.94752699,0.00020373,2]
[376737940,1754093450252,-500.0,0.00020373,2]
[376737941,1754093450261,-500.0,0.00020373,2]
[376737942,1754093450270,-500.0,0.00020373,2]
[376737943,1754093450279,-500.0,0.00020373,2]
[376737944,1754093450290,-500.0,0.00020373,2]
[376737945,1754093450299,-500.0,0.00020373,2]
[376737946,1754093450308,-462.13637724,0.00020373,2]
[376737947,1754093450317,-151.0,0.00020373,2]
[376737948,1754093450327,-160.0,0.000204,2]
[376737949,1754093450336,-1171.35355252,0.00020452,3]
[376737950,1754093450345,-4488.18,0.00020598,3]
[376737951,1754093450355,-151.0,0.000206,3]
[376737952,1754093450364,-715.32,0.00020604,2]
[376737953,1754093450374,-460.0,0.00020604,2]
[376737954,1754093450384,-578.52,0.00020604,2]
[376737955,1754093450393,-460.0,0.00020604,2]
[376737956,1754093450403,-460.0,0.00020604,2]
[376737957,1754093450412,-460.0,0.00020604,2]
[376737958,1754093450423,-460.0,0.00020604,2]
[376737959,1754093450432,-460.0,0.00020604,2]
[376737960,1754093450442,-460.0,0.00020604,2]
[376737961,1754093450451,-460.0,0.00020604,2]
[376737962,1754093450461,-460.0,0.00020604,2]
[376737963,1754093450470,-460.0,0.00020605,2]
[376737964,1754093450480,-460.0,0.00020605,2]
[376737965,1754093450489,-1028.88,0.00020605,2]
[376737966,1754093450499,-460.0,0.00020605,2]
[376737967,1754093450508,-460.0,0.00020605,2]
[376737968,1754093450617,-460.0,0.00020605,2]
[376737969,1754093450627,-460.0,0.00020605,2]
[376737970,1754093450636,-460.0,0.00020605,2]
[376737971,1754093450646,-469.25,0.00020605,2]
[376737972,1754093450655,-460.0,0.00020605,2]
[376737973,1754093450664,-460.0,0.00020605,2]
[376737974,1754093450673,-460.0,0.00020605,2]
[376737975,1754093450683,-460.0,0.00020605,2]
[376737976,1754093450692,-460.0,0.00020605,2]
[376737977,1754093450702,-460.0,0.00020605,2]
[376737978,1754093450712,-460.0,0.00020605,2]
[376737979,1754093450722,-185.26,0.00020605,2]
[376737980,1754093450731,-460.0,0.00020605,2]
[376737981,1754093450741,-532.66,0.00020605,2]
[376737982,1754093450750,-501.8,0.00020605,2]
[376737983,1754093450760,-460.0,0.00020605,2]
[376737984,1754093450771,-589.28,0.00020605,2]
[376737985,1754093450780,-807.54,0.00020605,2]
[376737986,1754093450791,-460.0,0.00020605,2]
[376737987,1754093450801,-460.0,0.00020605,2]
[376737988,1754093450810,-460.0,0.00020605,2]
[376737989,1754093450820,-460.0,0.00020605,2]
[376737990,1754093450831,-799.76,0.00020606,2]
[376737991,1754093450840,-562.16,0.00020606,2]
[376737992,1754093450850,-460.0,0.00020606,2]
[376737993,1754093450859,-460.0,0.00020606,2]
[376737994,1754093450869,-537.87,0.00020606,2]
[376737995,1754093450879,-460.0,0.00020606,2]
[376737996,1754093450888,-460.0,0.00020606,2]
[376737997,1754093450898,-460.0,0.00020606,2]
[376737998,1754093450907,-532.19,0.00020606,2]
[376737999,1754093450916,-460.0,0.00020606,2]
[376738000,1754093450926,-460.0,0.00020606,2]
[376738001,1754093450936,-460.0,0.00020606,2]
[376738002,1754093450945,-460.0,0.00020606,2]
[376738003,1754093450955,-460.0,0.00020606,2]
[376738004,1754093450964,-2177.61,0.00020606,2]
[376738005,1754093450974,-460.0,0.00020606,2]
[376738006,1754093450983,-460.0,0.00020607,2]
[376738007,1754093450992,-460.0,0.00020607,2]
[376738008,1754093451001,-460.0,0.00020607,2]
[376738009,1754093451011,-1761.1,0.00020608,2]
[376738010,1754093451020,-376.85,0.00020608,2]
[376738011,1754093451032,-460.0,0.00020608,2]
[376738012,1754093451042,-1201.48,0.00020608,2]
[376738013,1754093451052,-460.0,0.00020608,2]
[376738014,1754093451065,-460.0,0.00020608,2]
[376738015,1754093451075,-460.0,0.00020608,2]
[376738016,1754093451084,-460.0,0.0002061,2]
[376738017,1754093451094,-500.0,0.00020621,2]
[376738018,1754093451105,-1000.0,0.00020621,2]
[376738019,1754093451115,-1000.0,0.00020621,2]
[376738020,1754093451124,-421.83016461,0.00020621,2]
[376738021,1754093451133,-1000.0,0.00020621,2]
[376738022,1754093451145,-1000.0,0.00020621,2]
[376738023,1754093451155,-500.0,0.00020621,2]
[376738024,1754093451166,-1000.0,0.00020621,2]
[376738025,1754093451176,-1000.0,0.00020621,2]
[376738026,1754093451186,-733.16621669,0.00020621,2]
[376738027,1754093451196,-1004.16364285,0.00020621,2]
[376738028,1754093451206,-1500.0,0.00020668,2]
[376738029,1754093451216,-1171.35355252,0.00020728,3]
[376738030,1754093451226,-760.44826436,0.00020756,2]
[376738031,1754093451236,-215.03686253,0.00020773,2]
[376738032,1754093451245,-160.0,0.00020774,2]
[376738033,1754093451255,-160.0,0.00020774,2]
[376738034,1754093451266,-216.22890603,0.00020774,2]
[376738035,1754093451275,-460.76838597,0.00020774,2]
[376738036,1754093451285,-231.52694941,0.00020774,2]
[376738037,1754093451295,-12644.26590849,0.00020774,2]
[376738038,1754093451304,-160.0,0.00020774,2]
[376738039,1754093451314,-841.53699354,0.00020774,2]
[376738040,1754093451323,-160.0,0.00020774,2]
[376738041,1754093451333,-160.0,0.00020774,2]
[376738042,1754093451342,-160.0,0.00020781,2]
[376738043,1754093451352,-160.0,0.00020781,2]
[376738044,1754093451361,-160.0,0.00020781,2]
[376738045,1754093451371,-152.144064,0.00020837,2]
[376738046,1754093451381,-151.0,0.00020837,2]
[376738047,1754093451390,-500.0,0.00020868,2]
[376738048,1754093451400,-715.32,0.00020878,2]
[376738049,1754093451409,-460.0,0.00020878,2]
[376738050,1754093451419,-578.52,0.00020878,2]
[376738051,1754093451428,-460.0,0.00020878,2]
[376738052,1754093451437,-460.0,0.00020878,2]
[376738053,1754093451447,-460.0,0.00020878,2]
[376738054,1754093451456,-460.0,0.00020878,2]
[376738055,1754093451465,-460.0,0.00020878,2]
[376738056,1754093451475,-460.0,0.00020878,2]
[376738057,1754093451485,-460.0,0.00020878,2]
[376738058,1754093451494,-460.0,0.00020878,2]
[376738059,1754093451503,-460.0,0.00020879,2]
[376738060,1754093451514,-460.0,0.00020879,2]
[376738061,1754093451523,-1028.88,0.00020879,2]
[376738062,1754093451534,-418.27,0.00020879,2]
[376738063,1754093451543,-460.0,0.00020879,2]
[376738064,1754093451553,-460.0,0.00020879,2]
[376738065,1754093451562,-460.0,0.00020879,2]
[376738066,1754093451572,-460.0,0.00020879,2]
[376738067,1754093451582,-172.68,0.00020879,2]
[376738068,1754093451592,-460.0,0.00020879,2]
[376738069,1754093451602,-460.85,0.00020879,2]
[376738070,1754093451612,-460.0,0.00020879,2]
[376738071,1754093451621,-460.0,0.00020879,2]
[376738072,1754093451631,-460.0,0.00020879,2]
[376738073,1754093451643,-460.0,0.00020879,2]
[376738074,1754093451652,-589.28,0.00020879,2]
[376738075,1754093451661,-807.54,0.00020879,2]
[376738076,1754093451671,-460.0,0.00020879,2]
[376738077,1754093451681,-460.0,0.00020879,2]
[376738078,1754093451691,-460.0,0.00020879,2]
[376738079,1754093451700,-799.76,0.0002088,2]
[376738080,1754093451709,-460.0,0.0002088,2]
[376738081,1754093451719,-460.0,0.0002088,2]
[376738082,1754093451729,-460.0,0.0002088,2]
[376738083,1754093451738,-158.64,0.0002088,2]
[376738084,1754093451747,-460.0,0.0002088,2]
[376738085,1754093451756,-532.19,0.0002088,2]
[376738086,1754093451766,-460.0,0.0002088,2]
[376738087,1754093451775,-460.0,0.0002088,2]
[376738088,1754093451784,-460.0,0.0002088,2]
[376738089,1754093451796,-460.0,0.0002088,2]
[376738090,1754093451805,-2177.61,0.0002088,2]
[376738091,1754093451815,-460.0,0.0002088,2]
[376738092,1754093451825,-179.5,0.00020881,2]
[376738093,1754093451835,-460.0,0.00020881,2]
[376738094,1754093451844,-460.0,0.00020881,2]
[376738095,1754093451853,-1761.1,0.00020882,2]
[376738096,1754093451863,-460.0,0.00020882,2]
[376738097,1754093451873,-1201.48,0.00020882,2]
[376738098,1754093451882,-460.0,0.00020882,2]
[376738099,1754093451891,-460.0,0.00020882,2]
[376738100,1754093451901,-151.0,0.00020883,2]
[376738101,1754093451911,-460.0,0.00020884,2]
[376738102,1754093451920,-500.0,0.00020921,2]
[376738103,1754093451930,-200.0,0.00020921,2]
[376738104,1754093451939,-1000.0,0.00020921,2]
[376738105,1754093451949,-1000.0,0.00020921,2]
[376738106,1754093451959,-260.0,0.00020948,2]
[376738107,1754093451968,-163.0,0.00020959,3]
[376738108,1754093451978,-96423.71400681,0.0002099,2]
[376738109,1754093451987,-151.0,0.00021,2]
[376738110,1754093451997,-1171.35355252,0.00021003,4]
[376738111,1754093452007,-480.0,0.00021061,2]
[376738112,1754093452016,-460.76838597,0.00021143,3]
[376738113,1754093452025,-160.0,0.00021143,3]
[376738114,1754093452034,-12644.26590849,0.00021143,3]
[376738115,1754093452046,-715.32,0.00021152,2]
[376738116,1754093452055,-460.0,0.00021152,2]
[376738117,1754093452069,-578.52,0.00021152,2]
[376738118,1754093452079,-495.64,0.00021152,2]
[376738119,1754093452089,-460.0,0.00021152,2]
[376738120,1754093452098,-460.0,0.00021152,2]
[376738121,1754093452109,-460.0,0.00021152,2]
[376738122,1754093452118,-460.0,0.00021152,2]
[376738123,1754093452127,-460.0,0.00021152,2]
[376738124,1754093452137,-460.0,0.00021152,2]
[376738125,1754093452148,-460.0,0.00021152,2]
[376738126,1754093452158,-460.0,0.00021153,2]
[376738127,1754093452167,-460.0,0.00021153,2]
[376738128,1754093452177,-1028.88,0.00021153,2]
[376738129,1754093452186,-460.0,0.00021153,2]
[376738130,1754093452195,-460.0,0.00021153,2]
[376738131,1754093452205,-460.0,0.00021153,2]
[376738132,1754093452214,-460.0,0.00021153,2]
[376738133,1754093452223,-482.15,0.00021153,2]
[376738134,1754093452233,-460.0,0.00021153,2]
[376738135,1754093452242,-460.0,0.00021153,2]
[376738136,1754093452251,-460.0,0.00021153,2]
[376738137,1754093452260,-460.0,0.00021153,2]
[376738138,1754093452270,-589.28,0.00021153,2]
[376738139,1754093452279,-807.54,0.00021153,2]
[376738140,1754093452288,-460.0,0.00021153,2]
[376738141,1754093452298,-460.0,0.00021153,2]
[376738142,1754093452307,-460.0,0.00021153,2]
[376738143,1754093452317,-799.76,0.00021154,2]
[376738144,1754093452326,-460.0,0.00021154,2]
[376738145,1754093452336,-414.54,0.00021154,2]
[376738146,1754093452347,-460.0,0.00021154,2]
[376738147,1754093452356,-191.64,0.00021154,2]
[376738148,1754093452366,-532.19,0.00021154,2]
[376738149,1754093452375,-460.0,0.00021154,2]
[376738150,1754093452385,-460.0,0.00021154,2]
[376738151,1754093452394,-460.0,0.00021154,2]
[376738152,1754093452403,-460.0,0.00021154,2]
[376738153,1754093452413,-2177.61,0.00021154,2]
[376738154,1754093452422,-460.0,0.00021154,2]
[376738155,1754093452431,-460.0,0.00021155,2]
[376738156,1754093452440,-217.77,0.00021155,2]
[376738157,1754093452450,-1761.1,0.00021156,2]
[376738158,1754093452459,-460.0,0.00021156,2]
[376738159,1754093452473,-1201.48,0.00021156,2]
[376738160,1754093452488,-460.0,0.00021156,2]
[376738161,1754093452498,-460.0,0.00021156,2]
[376738162,1754093452507,-460.0,0.00021158,2]
[376738163,1754093452517,-151.0,0.0002116,2]
[376738164,1754093452527,-1518.72061119,0.00021168,2]
[376738165,1754093452536,-500.0,0.00021168,2]
[376738166,1754093452545,-1500.0,0.00021168,2]
[376738167,1754093452554,-1517.79606695,0.00021168,2]
[376738168,1754093452563,-1000.0,0.00021168,2]
[376738169,1754093452573,-261.74517672,0.00021216,2]
[376738170,1754093452582,-1171.35355252,0.00021279,5]
[376738171,1754093452591,-151.0,0.00021368,2]
[376738172,1754093452601,-500.0,0.00021368,2]
[376738173,1754093452610,-2030.296672,0.00021368,2]
[376738174,1754093452619,-500.0,0.00021368,2]
[376738175,1754093452628,-500.0,0.00021368,2]
[376738176,1754093452637,-151.0,0.00021368,2]
[376738177,1754093452646,-500.0,0.00021368,2]
[376738178,1754093452655,-151.0,0.00021368,2]
[376738179,1754093452665,-500.0,0.00021368,2]
[376738180,1754093452674,-151.0,0.00021368,2]
[376738181,1754093452684,-500.0,0.00021368,2]
[376738182,1754093452693,-151.0,0.00021368,2]
[376738183,1754093452703,-500.0,0.00021368,2]
[376738184,1754093452713,-151.0,0.00021368,2]
[376738185,1754093452723,-500.0,0.00021368,2]
[376738186,1754093452732,-151.0,0.00021368,2]
[376738187,1754093452741,-151.0,0.00021368,2]
[376738188,1754093452750,-500.0,0.00021368,2]
[376738189,1754093452760,-151.0,0.00021368,2]
[376738190,1754093452769,-151.0,0.00021368,2]
[376738191,1754093452779,-151.0,0.00021368,2]
[376738192,1754093452790,-151.0,0.00021368,2]
[376738193,1754093452800,-500.0,0.00021368,2]
[376738194,1754093452810,-151.0,0.00021368,2]
[376738195,1754093452819,-151.0,0.00021368,2]
[376738196,1754093452829,-500.0,0.00021368,2]
[376738197,1754093452838,-151.0,0.00021368,2]
[376738198,1754093452848,-151.0,0.00021368,2]
[376738199,1754093452857,-151.0,0.00021368,2]